[Event "*** Titled Tuesday Blitz"]
[Site "Chess.com"]
[Date "2021.02.09"]
[Round "7"]
[White "AttackSparrow"]
[Black "kakorrhaphiophobie"]
[Result "1-0"]
[WhiteElo "2484"]
[BlackElo "2330"]
[TimeControl "180+1"]
[EndTime "11:18:56 PST"]
[Termination "AttackSparrow won on time"]

1. e4 {[%clk 0:03:00.9]} 1... e6 {[%clk 0:02:57.2]} 2. d4 {[%clk 0:02:58.3]}
2... d5 {[%clk 0:02:57.9]} 3. Nd2 {[%clk 0:02:55.1]} 3... c5 {[%clk 0:02:55.2]}
4. exd5 {[%clk 0:02:53.6]} 4... Qxd5 {[%clk 0:02:56.1]} 5. Ngf3 {[%clk
0:02:52.8]} 5... cxd4 {[%clk 0:02:52.7]} 6. Bc4 {[%clk 0:02:50.6]} 6... Qd6
{[%clk 0:02:52.9]} 7. O-O {[%clk 0:02:49.7]} 7... Nf6 {[%clk 0:02:52.6]} 8. Nb3
{[%clk 0:02:49.5]} 8... Nc6 {[%clk 0:02:50.3]} 9. Nbxd4 {[%clk 0:02:49.4]} 9...
Nxd4 {[%clk 0:02:49.7]} 10. Nxd4 {[%clk 0:02:50.3]} 10... a6 {[%clk 0:02:41.9]}
11. Re1 {[%clk 0:02:48.1]} 11... Be7 {[%clk 0:02:39.7]} 12. c3 {[%clk
0:02:41.3]} 12... Bd7 {[%clk 0:02:39.2]} 13. Qf3 {[%clk 0:02:37.9]} 13... Rc8
{[%clk 0:02:34.8]} 14. Bf4 {[%clk 0:02:32.7]} 14... Qb6 {[%clk 0:02:25.6]} 15.
Bb3 {[%clk 0:02:31.7]} 15... Bc6 {[%clk 0:01:57.9]} 16. Qg3 {[%clk 0:02:12]}
16... Nh5 {[%clk 0:01:53.4]} 17. Qg4 {[%clk 0:02:11.2]} 17... Nxf4 {[%clk
0:01:51]} 18. Qxf4 {[%clk 0:02:11.3]} 18... O-O {[%clk 0:01:29.2]} 19. Nf5
{[%clk 0:02:08.2]} 19... Bf6 {[%clk 0:01:24.1]} 20. Nh6+ {[%clk 0:01:58.8]}
20... Kh8 {[%clk 0:01:23.9]} 21. Ng4 {[%clk 0:01:59.7]} 21... Qc7 {[%clk
0:01:10.1]} 22. Qe3 {[%clk 0:01:48.6]} 22... Be7 {[%clk 0:01:04.2]} 23. Bc2
{[%clk 0:01:46.3]} 23... Bd6 {[%clk 0:00:52.5]} 24. Qh3 {[%clk 0:01:45.8]} 24...
g6 {[%clk 0:00:50.2]} 25. Nf6 {[%clk 0:01:42.1]} 25... Kg7 {[%clk 0:00:43.7]}
26. Ng4 {[%clk 0:01:11.5]} 26... h5 {[%clk 0:00:40.6]} 27. Ne3 {[%clk
0:01:11.4]} 27... Rcd8 {[%clk 0:00:30.8]} 28. Nc4 {[%clk 0:01:04.5]} 28... Be7
{[%clk 0:00:28.4]} 29. Ne5 {[%clk 0:00:57.3]} 29... Bf6 {[%clk 0:00:28.8]} 30.
Qg3 {[%clk 0:00:48.5]} 30... Bxe5 {[%clk 0:00:27.9]} 31. Rxe5 {[%clk 0:00:47.5]}
31... Rd5 {[%clk 0:00:20.6]} 32. Rae1 {[%clk 0:00:44.5]} 32... Rxe5 {[%clk
0:00:20.4]} 33. Rxe5 {[%clk 0:00:45.4]} 33... Rd8 {[%clk 0:00:20.7]} 34. h3
{[%clk 0:00:42.1]} 34... Rd5 {[%clk 0:00:18.6]} 35. f4 {[%clk 0:00:39.2]} 35...
Rxe5 {[%clk 0:00:18.2]} 36. fxe5 {[%clk 0:00:40.1]} 36... Qd8 {[%clk 0:00:17.6]}
37. Qf4 {[%clk 0:00:40]} 37... Bd5 {[%clk 0:00:15.6]} 38. h4 {[%clk 0:00:39.7]}
38... Bxa2 {[%clk 0:00:13.8]} 39. b3 {[%clk 0:00:39.3]} 39... a5 {[%clk
0:00:12.6]} 40. Qa4 {[%clk 0:00:36.7]} 40... Qb6+ {[%clk 0:00:12.6]} 41. Kh2
{[%clk 0:00:36.3]} 41... Qf2 {[%clk 0:00:12.8]} 42. Bd3 {[%clk 0:00:25]} 42...
b6 {[%clk 0:00:06.9]} 43. Bb5 {[%clk 0:00:22.8]} 43... Qd2 {[%clk 0:00:03.8]}
44. Qc4 {[%clk 0:00:17.3]} 44... Bb1 {[%clk 0:00:04]} 45. Be8 {[%clk 0:00:16.5]}
45... Bd3 {[%clk 0:00:02.5]} 46. Qd4 {[%clk 0:00:15.6]} 46... Qe2 {[%clk
0:00:01.8]} 47. Qf4 {[%clk 0:00:15.2]} 1-0

[Event "*** Titled Tuesday Blitz"]
[Site "Chess.com"]
[Date "2021.02.09"]
[Round "7"]
[White "Arseniy_Nesterov"]
[Black "csati17"]
[Result "1-0"]
[WhiteElo "2807"]
[BlackElo "2571"]
[TimeControl "180+1"]
[EndTime "11:18:58 PST"]
[Termination "Arseniy_Nesterov won by resignation"]

1. d4 {[%clk 0:03:00.9]} 1... Nf6 {[%clk 0:02:59.9]} 2. c4 {[%clk 0:03:00.7]}
2... e6 {[%clk 0:02:59.4]} 3. Nf3 {[%clk 0:02:59.8]} 3... Bb4+ {[%clk
0:02:58.8]} 4. Bd2 {[%clk 0:02:58.2]} 4... Qe7 {[%clk 0:02:59]} 5. g3 {[%clk
0:02:58]} 5... O-O {[%clk 0:02:59.3]} 6. Bg2 {[%clk 0:02:57.6]} 6... Bxd2+
{[%clk 0:02:59.3]} 7. Qxd2 {[%clk 0:02:56.9]} 7... d6 {[%clk 0:02:59.7]} 8. O-O
{[%clk 0:02:56.3]} 8... e5 {[%clk 0:02:58.7]} 9. Nc3 {[%clk 0:02:55.5]} 9... Nc6
{[%clk 0:02:57.5]} 10. Nd5 {[%clk 0:02:43.2]} 10... Qd8 {[%clk 0:02:36.6]} 11.
dxe5 {[%clk 0:02:28.2]} 11... dxe5 {[%clk 0:02:34.1]} 12. Rad1 {[%clk
0:02:26.1]} 12... Bg4 {[%clk 0:02:32.8]} 13. Qe3 {[%clk 0:01:41.4]} 13... Bxf3
{[%clk 0:01:28.5]} 14. Bxf3 {[%clk 0:01:39.1]} 14... Qd6 {[%clk 0:01:10.3]} 15.
Nb6 {[%clk 0:01:28.4]} 15... Nd4 {[%clk 0:01:09.4]} 16. Nxa8 {[%clk 0:01:27.2]}
16... Rxa8 {[%clk 0:01:10.3]} 17. Bg2 {[%clk 0:00:58.4]} 17... c5 {[%clk
0:00:47.9]} 18. Qd3 {[%clk 0:00:40.6]} 18... Rd8 {[%clk 0:00:44.2]} 19. Kh1
{[%clk 0:00:39.1]} 19... Qe6 {[%clk 0:00:28.5]} 20. e3 {[%clk 0:00:34.4]} 20...
e4 {[%clk 0:00:21.3]} 21. Qc3 {[%clk 0:00:23.3]} 21... Nc6 {[%clk 0:00:20.5]}
22. Rxd8+ {[%clk 0:00:22.9]} 22... Nxd8 {[%clk 0:00:21.4]} 23. Rd1 {[%clk
0:00:19.1]} 23... Nc6 {[%clk 0:00:20.6]} 24. h3 {[%clk 0:00:18.8]} 24... h5
{[%clk 0:00:18.5]} 25. b3 {[%clk 0:00:09.3]} 25... Qf5 {[%clk 0:00:18.5]} 26.
Qe1 {[%clk 0:00:07]} 26... g5 {[%clk 0:00:16.4]} 27. Qe2 {[%clk 0:00:06.3]}
27... Kg7 {[%clk 0:00:12.8]} 28. Kg1 {[%clk 0:00:06.3]} 28... Ne5 {[%clk
0:00:11.8]} 29. Rd6 {[%clk 0:00:04]} 29... g4 {[%clk 0:00:10.7]} 30. h4 {[%clk
0:00:04.1]} 30... Nf3+ {[%clk 0:00:11]} 31. Bxf3 {[%clk 0:00:03.3]} 31... gxf3
{[%clk 0:00:08.7]} 32. Qf1 {[%clk 0:00:03.6]} 32... Qe5 {[%clk 0:00:07.4]} 33.
Rd2 {[%clk 0:00:02.7]} 33... Ng4 {[%clk 0:00:06.6]} 34. Rd1 {[%clk 0:00:02.4]}
34... Kg6 {[%clk 0:00:06.8]} 35. Rd5 {[%clk 0:00:02.9]} 35... Qc7 {[%clk
0:00:05.3]} 36. Rg5+ {[%clk 0:00:02.9]} 36... Kh6 {[%clk 0:00:05.8]} 37. Rd5
{[%clk 0:00:02.8]} 37... f6 {[%clk 0:00:05.6]} 38. Qe1 {[%clk 0:00:02.7]} 38...
Qe7 {[%clk 0:00:05.6]} 39. Qf1 {[%clk 0:00:03]} 39... Kg6 {[%clk 0:00:05.5]} 40.
Qd1 {[%clk 0:00:03.4]} 40... Ne5 {[%clk 0:00:05.8]} 41. Qc2 {[%clk 0:00:03.3]}
41... f5 {[%clk 0:00:06]} 42. Qd1 {[%clk 0:00:02.6]} 42... Qe6 {[%clk
0:00:05.3]} 43. Rd6 {[%clk 0:00:03]} 1-0

[Event "*** Titled Tuesday Blitz"]
[Site "Chess.com"]
[Date "2021.02.09"]
[Round "7"]
[White "CSB7"]
[Black "mapleaff"]
[Result "0-1"]
[WhiteElo "2556"]
[BlackElo "2421"]
[TimeControl "180+1"]
[EndTime "11:18:58 PST"]
[Termination "mapleaff won by resignation"]

1. e4 {[%clk 0:03:00.9]} 1... c5 {[%clk 0:02:59.3]} 2. Nf3 {[%clk 0:02:59.3]}
2... d6 {[%clk 0:02:59.7]} 3. Bb5+ {[%clk 0:02:55.7]} 3... Nd7 {[%clk 0:02:58]}
4. O-O {[%clk 0:02:55.3]} 4... Nf6 {[%clk 0:02:56.5]} 5. Re1 {[%clk 0:02:55.2]}
5... a6 {[%clk 0:02:55.2]} 6. Bf1 {[%clk 0:02:55.5]} 6... e5 {[%clk 0:02:46.8]}
7. c3 {[%clk 0:02:55.3]} 7... Be7 {[%clk 0:02:46.4]} 8. d4 {[%clk 0:02:54.8]}
8... O-O {[%clk 0:02:43.3]} 9. d5 {[%clk 0:02:54.9]} 9... b5 {[%clk 0:02:42.8]}
10. a4 {[%clk 0:02:54.1]} 10... Rb8 {[%clk 0:02:41]} 11. Na3 {[%clk 0:02:51.1]}
11... c4 {[%clk 0:02:37]} 12. b4 {[%clk 0:02:19.3]} 12... cxb3 {[%clk
0:02:28.2]} 13. axb5 {[%clk 0:02:18.9]} 13... axb5 {[%clk 0:02:27.5]} 14. Nxb5
{[%clk 0:01:36.4]} 14... Nc5 {[%clk 0:02:21.7]} 15. Nd2 {[%clk 0:01:36.8]} 15...
Bg4 {[%clk 0:02:03]} 16. f3 {[%clk 0:01:36]} 16... Bd7 {[%clk 0:02:01.1]} 17. c4
{[%clk 0:01:36.1]} 17... Qb6 {[%clk 0:01:42.7]} 18. Kh1 {[%clk 0:01:35.8]} 18...
Nh5 {[%clk 0:01:04.4]} 19. Nxb3 {[%clk 0:01:25.7]} 19... Bh4 {[%clk 0:01:00.6]}
20. Nxc5 {[%clk 0:01:16.9]} 20... dxc5 {[%clk 0:00:59.2]} 21. Re2 {[%clk
0:01:11.3]} 21... Ng3+ {[%clk 0:00:40.3]} 22. Kg1 {[%clk 0:00:19.2]} 22... Nxe2+
{[%clk 0:00:39.3]} 23. Bxe2 {[%clk 0:00:20.1]} 23... Bxb5 {[%clk 0:00:35.9]} 24.
cxb5 {[%clk 0:00:19.9]} 24... c4+ {[%clk 0:00:35.9]} 25. Kh1 {[%clk 0:00:19.8]}
25... Qxb5 {[%clk 0:00:34.1]} 26. g3 {[%clk 0:00:15.7]} 26... Be7 {[%clk
0:00:25.1]} 27. Be3 {[%clk 0:00:15.7]} 27... Bc5 {[%clk 0:00:24.2]} 28. Qc1
{[%clk 0:00:09.1]} 28... Bxe3 {[%clk 0:00:16]} 29. Qxe3 {[%clk 0:00:10]} 29...
Rfc8 {[%clk 0:00:13.5]} 30. Rc1 {[%clk 0:00:09.9]} 30... Qb3 {[%clk 0:00:07.2]}
31. Rc3 {[%clk 0:00:05]} 31... Qb1+ {[%clk 0:00:07.2]} 32. Kg2 {[%clk
0:00:05.2]} 32... Qb2 {[%clk 0:00:05.9]} 33. d6 {[%clk 0:00:03.3]} 33... Rb3
{[%clk 0:00:04.5]} 34. d7 {[%clk 0:00:02.8]} 34... Rd8 {[%clk 0:00:04.5]} 35.
Rxc4 {[%clk 0:00:02.4]} 35... Rxe3 {[%clk 0:00:04.2]} 36. Rc8 {[%clk 0:00:02.9]}
36... Qxe2+ {[%clk 0:00:04.2]} 37. Kh3 {[%clk 0:00:03.1]} 37... Qf1+ {[%clk
0:00:04.3]} 38. Kg4 {[%clk 0:00:03.2]} 38... h5+ {[%clk 0:00:04.1]} 39. Kg5
{[%clk 0:00:03]} 39... Qh3 {[%clk 0:00:03.3]} 40. Rxd8+ {[%clk 0:00:02.8]} 40...
Kh7 {[%clk 0:00:03.9]} 41. Rh8+ {[%clk 0:00:03.1]} 41... Kxh8 {[%clk 0:00:04.3]}
42. d8=Q+ {[%clk 0:00:04]} 42... Kh7 {[%clk 0:00:04.8]} 43. Qh8+ {[%clk
0:00:03.3]} 43... Kxh8 {[%clk 0:00:04.5]} 0-1

[Event "*** Titled Tuesday Blitz"]
[Site "Chess.com"]
[Date "2021.02.09"]
[Round "7"]
[White "jefferyx"]
[Black "exoticprincess"]
[Result "0-1"]
[WhiteElo "2989"]
[BlackElo "2863"]
[TimeControl "180+1"]
[EndTime "11:18:59 PST"]
[Termination "exoticprincess won on time"]

1. e4 {[%clk 0:03:00.9]} 1... e5 {[%clk 0:02:58.1]} 2. Nf3 {[%clk 0:03:00.9]}
2... Nf6 {[%clk 0:02:58.7]} 3. Nc3 {[%clk 0:03:00.8]} 3... d6 {[%clk 0:02:57.2]}
4. d4 {[%clk 0:02:51.2]} 4... Nbd7 {[%clk 0:02:57.3]} 5. Bc4 {[%clk 0:02:49.6]}
5... Be7 {[%clk 0:02:57.6]} 6. a4 {[%clk 0:02:49.8]} 6... O-O {[%clk 0:02:57.8]}
7. O-O {[%clk 0:02:50.4]} 7... a5 {[%clk 0:02:57.6]} 8. Re1 {[%clk 0:02:49.6]}
8... h6 {[%clk 0:02:55.4]} 9. h3 {[%clk 0:02:48.8]} 9... Re8 {[%clk 0:02:55.6]}
10. Be3 {[%clk 0:02:46.8]} 10... Bf8 {[%clk 0:02:55]} 11. Qd2 {[%clk 0:02:12.7]}
11... b6 {[%clk 0:02:51.7]} 12. Rad1 {[%clk 0:02:08.9]} 12... Bb7 {[%clk
0:02:51.6]} 13. d5 {[%clk 0:02:05]} 13... Be7 {[%clk 0:02:31.6]} 14. Bb5 {[%clk
0:02:03.6]} 14... Rf8 {[%clk 0:02:31.3]} 15. Nh2 {[%clk 0:02:02.1]} 15... Nc5
{[%clk 0:02:24]} 16. Bxc5 {[%clk 0:01:51.3]} 16... bxc5 {[%clk 0:02:24.9]} 17.
Nb1 {[%clk 0:01:49.2]} 17... Nd7 {[%clk 0:02:19]} 18. Na3 {[%clk 0:01:47.9]}
18... Nb6 {[%clk 0:02:19.1]} 19. Ng4 {[%clk 0:01:47]} 19... f5 {[%clk
0:02:15.5]} 20. exf5 {[%clk 0:01:45.3]} 20... Bxd5 {[%clk 0:02:04.1]} 21. Nc4
{[%clk 0:01:25.4]} 21... Bg5 {[%clk 0:01:49.5]} 22. Qe2 {[%clk 0:01:18.1]} 22...
c6 {[%clk 0:01:31.6]} 23. Nxb6 {[%clk 0:00:40.1]} 23... Qxb6 {[%clk 0:01:32.5]}
24. c4 {[%clk 0:00:40.8]} 24... Bxg2 {[%clk 0:01:21]} 25. Kxg2 {[%clk
0:00:32.3]} 25... cxb5 {[%clk 0:01:21.1]} 26. axb5 {[%clk 0:00:31.3]} 26... Rxf5
{[%clk 0:01:19.4]} 27. Qe4 {[%clk 0:00:28.4]} 27... Raf8 {[%clk 0:01:18.6]} 28.
Qd5+ {[%clk 0:00:28.6]} 28... Kh7 {[%clk 0:01:17.6]} 29. Qxd6 {[%clk 0:00:29.5]}
29... Qxd6 {[%clk 0:01:13.1]} 30. Rxd6 {[%clk 0:00:30.4]} 30... h5 {[%clk
0:01:14]} 31. Rxe5 {[%clk 0:00:05.4]} 31... hxg4 {[%clk 0:01:13.7]} 32. Rxf5
{[%clk 0:00:05.7]} 32... Rxf5 {[%clk 0:00:59.5]} 33. hxg4 {[%clk 0:00:05.6]}
33... Rf4 {[%clk 0:00:59.4]} 34. b3 {[%clk 0:00:03]} 34... Rxg4+ {[%clk
0:00:56.5]} 35. Kf3 {[%clk 0:00:03.4]} 35... Rf4+ {[%clk 0:00:54.9]} 36. Kg3
{[%clk 0:00:03.9]} 36... Rf6 {[%clk 0:00:24.6]} 37. Rd5 {[%clk 0:00:03.4]} 37...
Bf4+ {[%clk 0:00:20.3]} 38. Kg2 {[%clk 0:00:04]} 38... Bd6 {[%clk 0:00:19.1]}
39. b6 {[%clk 0:00:03.1]} 39... Bf4 {[%clk 0:00:17.1]} 40. Rh5+ {[%clk
0:00:01.6]} 40... Kg6 {[%clk 0:00:15.2]} 41. Rxc5 {[%clk 0:00:01.2]} 41... Rxb6
{[%clk 0:00:15.2]} 42. Rxa5 {[%clk 0:00:01.3]} 42... Rxb3 {[%clk 0:00:15.3]} 43.
Rd5 {[%clk 0:00:01.6]} 43... Rc3 {[%clk 0:00:14.7]} 44. Rd4 {[%clk 0:00:01.7]}
44... Be5 {[%clk 0:00:14.9]} 45. Re4 {[%clk 0:00:01.9]} 45... Bf6 {[%clk
0:00:15.2]} 46. f3 {[%clk 0:00:02.8]} 46... Kf5 {[%clk 0:00:15.4]} 47. Kf2
{[%clk 0:00:03.7]} 47... Be5 {[%clk 0:00:14.9]} 48. Ke2 {[%clk 0:00:04.6]} 48...
g5 {[%clk 0:00:14.3]} 49. Kf2 {[%clk 0:00:04.8]} 49... Bf4 {[%clk 0:00:14.3]}
0-1

[Event "*** Titled Tuesday Blitz"]
[Site "Chess.com"]
[Date "2021.02.09"]
[Round "7"]
[White "MVM2008"]
[Black "ViktoriyaTarasova"]
[Result "1/2-1/2"]
[WhiteElo "2126"]
[BlackElo "2307"]
[TimeControl "180+1"]
[EndTime "11:19:00 PST"]
[Termination "Game drawn by repetition"]

1. e4 {[%clk 0:03:00.9]} 1... e5 {[%clk 0:02:59.6]} 2. f4 {[%clk 0:02:56.8]}
2... d5 {[%clk 0:02:58.3]} 3. Nf3 {[%clk 0:02:56.1]} 3... exf4 {[%clk
0:02:56.9]} 4. exd5 {[%clk 0:02:46.7]} 4... Nf6 {[%clk 0:02:56.2]} 5. Nc3 {[%clk
0:02:41.6]} 5... Nxd5 {[%clk 0:02:55.5]} 6. Bc4 {[%clk 0:02:41.2]} 6... Be6
{[%clk 0:02:54.7]} 7. Bxd5 {[%clk 0:02:25.5]} 7... Bxd5 {[%clk 0:02:54.2]} 8.
Qe2+ {[%clk 0:02:15.3]} 8... Be7 {[%clk 0:02:53.4]} 9. d4 {[%clk 0:02:04.9]}
9... Be6 {[%clk 0:02:13.1]} 10. Bxf4 {[%clk 0:01:43.7]} 10... O-O {[%clk
0:02:12.3]} 11. O-O-O {[%clk 0:01:39.1]} 11... c6 {[%clk 0:01:54.8]} 12. h4
{[%clk 0:01:28]} 12... h6 {[%clk 0:01:51.3]} 13. g4 {[%clk 0:01:24.1]} 13...
Bxg4 {[%clk 0:01:39.7]} 14. h5 {[%clk 0:01:17.3]} 14... Nd7 {[%clk 0:01:33.5]}
15. Rdg1 {[%clk 0:01:13]} 15... f5 {[%clk 0:00:32.6]} 16. Qe6+ {[%clk
0:00:52.8]} 16... Kh8 {[%clk 0:00:30.8]} 17. Be5 {[%clk 0:00:20]} 17... Bf6
{[%clk 0:00:24.5]} 18. Nh4 {[%clk 0:00:14.7]} 18... Re8 {[%clk 0:00:21.5]} 19.
Ng6+ {[%clk 0:00:08.6]} 19... Kh7 {[%clk 0:00:21.4]} 20. Qc4 {[%clk 0:00:04]}
20... Nxe5 {[%clk 0:00:20.6]} 21. dxe5 {[%clk 0:00:04.9]} 21... Bxe5 {[%clk
0:00:20]} 22. Rxg4 {[%clk 0:00:05.1]} 22... fxg4 {[%clk 0:00:19.6]} 23. Qe4
{[%clk 0:00:03.2]} 23... Qg5+ {[%clk 0:00:18.7]} 24. Kb1 {[%clk 0:00:02.5]}
24... Kg8 {[%clk 0:00:19]} 25. Nxe5 {[%clk 0:00:01.9]} 25... Qxe5 {[%clk
0:00:18]} 26. Qc4+ {[%clk 0:00:02.8]} 26... Kh8 {[%clk 0:00:17.4]} 27. Rd1
{[%clk 0:00:01.6]} 27... Rad8 {[%clk 0:00:16.1]} 28. Rxd8 {[%clk 0:00:01.2]}
28... Rxd8 {[%clk 0:00:16.3]} 29. a3 {[%clk 0:00:02.1]} 29... Qe1+ {[%clk
0:00:15.3]} 30. Ka2 {[%clk 0:00:02.1]} 30... g3 {[%clk 0:00:15.8]} 31. Qf7
{[%clk 0:00:02.1]} 31... Qe8 {[%clk 0:00:14.6]} 32. Qf3 {[%clk 0:00:01.8]} 32...
Qe6+ {[%clk 0:00:13.9]} 33. b3 {[%clk 0:00:01.4]} 33... Qe5 {[%clk 0:00:13.2]}
34. Ne4 {[%clk 0:00:01.2]} 34... Kg8 {[%clk 0:00:12.8]} 35. Nxg3 {[%clk
0:00:01.3]} 35... Rf8 {[%clk 0:00:12.9]} 36. Qg4 {[%clk 0:00:01.6]} 36... Qc3
{[%clk 0:00:11.7]} 37. Qg6 {[%clk 0:00:01.3]} 37... Qf6 {[%clk 0:00:09.1]} 38.
Qe4 {[%clk 0:00:01.2]} 38... Qf4 {[%clk 0:00:08.5]} 39. Qd3 {[%clk 0:00:02.1]}
39... Qf3 {[%clk 0:00:07.8]} 40. Qc4+ {[%clk 0:00:02.2]} 40... Kh8 {[%clk
0:00:08]} 41. Ne4 {[%clk 0:00:03.1]} 41... Qf4 {[%clk 0:00:07.4]} 42. Qd3 {[%clk
0:00:02.8]} 42... Re8 {[%clk 0:00:07]} 43. Nd6 {[%clk 0:00:03]} 43... Rf8 {[%clk
0:00:07.2]} 44. Ne4 {[%clk 0:00:02.5]} 44... Qf3 {[%clk 0:00:06.3]} 45. Qd4
{[%clk 0:00:02.6]} 45... Qf4 {[%clk 0:00:06.4]} 46. Qd3 {[%clk 0:00:02.7]}
1/2-1/2

[Event "*** Titled Tuesday Blitz"]
[Site "Chess.com"]
[Date "2021.02.09"]
[Round "7"]
[White "cstevens1"]
[Black "ElCoachRene"]
[Result "1-0"]
[WhiteElo "2705"]
[BlackElo "2188"]
[TimeControl "180+1"]
[EndTime "11:19:00 PST"]
[Termination "cstevens1 won by checkmate"]

1. e4 {[%clk 0:02:56.5]} 1... Nc6 {[%clk 0:02:59.8]} 2. Nf3 {[%clk 0:02:56.6]}
2... d5 {[%clk 0:03:00.2]} 3. exd5 {[%clk 0:02:56.3]} 3... Qxd5 {[%clk
0:03:01.1]} 4. Nc3 {[%clk 0:02:56.4]} 4... Qa5 {[%clk 0:03:01.8]} 5. Bb5 {[%clk
0:02:53.9]} 5... Bg4 {[%clk 0:03:02]} 6. h3 {[%clk 0:02:52.4]} 6... Bd7 {[%clk
0:03:01]} 7. d4 {[%clk 0:02:49.8]} 7... a6 {[%clk 0:03:00]} 8. Bc4 {[%clk
0:02:27.1]} 8... e6 {[%clk 0:02:57.3]} 9. O-O {[%clk 0:02:26.1]} 9... Nf6 {[%clk
0:02:55.8]} 10. a3 {[%clk 0:02:02.4]} 10... Be7 {[%clk 0:02:51.8]} 11. Bf4
{[%clk 0:01:47.3]} 11... Bd6 {[%clk 0:02:46.2]} 12. Bxd6 {[%clk 0:01:42.3]}
12... cxd6 {[%clk 0:02:45.5]} 13. d5 {[%clk 0:01:40.2]} 13... Qc5 {[%clk
0:02:38.2]} 14. dxe6 {[%clk 0:01:39.1]} 14... fxe6 {[%clk 0:02:38.1]} 15. Ba2
{[%clk 0:01:27.6]} 15... O-O {[%clk 0:02:37.8]} 16. Qe2 {[%clk 0:01:16.4]} 16...
Rae8 {[%clk 0:02:36.7]} 17. Rad1 {[%clk 0:01:14.6]} 17... d5 {[%clk 0:02:32.4]}
18. Ne5 {[%clk 0:01:10.8]} 18... Nxe5 {[%clk 0:02:31.3]} 19. Qxe5 {[%clk
0:01:11.2]} 19... b5 {[%clk 0:02:30]} 20. Bb3 {[%clk 0:01:03.5]} 20... a5 {[%clk
0:02:28.2]} 21. a4 {[%clk 0:00:54.4]} 21... b4 {[%clk 0:02:27.1]} 22. Ne2 {[%clk
0:00:54.2]} 22... Ne4 {[%clk 0:02:21.8]} 23. Nd4 {[%clk 0:00:54.2]} 23... Qe7
{[%clk 0:01:54.4]} 24. f3 {[%clk 0:00:46.6]} 24... Qf6 {[%clk 0:01:46.3]} 25.
Qc7 {[%clk 0:00:35.3]} 25... Bc8 {[%clk 0:01:43.6]} 26. fxe4 {[%clk 0:00:34.8]}
26... Qg5 {[%clk 0:01:40.6]} 27. Rxf8+ {[%clk 0:00:25.2]} 27... Rxf8 {[%clk
0:01:41.5]} 28. Nf3 {[%clk 0:00:19.9]} 28... Qe3+ {[%clk 0:01:28]} 29. Kh1
{[%clk 0:00:19.9]} 29... dxe4 {[%clk 0:01:27.2]} 30. Ne5 {[%clk 0:00:17.2]}
30... Qf4 {[%clk 0:01:21.8]} 31. Qd6 {[%clk 0:00:13.8]} 31... Qf6 {[%clk
0:01:11.1]} 32. Ng4 {[%clk 0:00:11.7]} 32... Qf5 {[%clk 0:01:06.9]} 33. Ne3
{[%clk 0:00:08.1]} 33... Qf6 {[%clk 0:01:02.9]} 34. Rf1 {[%clk 0:00:06.9]} 34...
Qxf1+ {[%clk 0:00:58.2]} 35. Nxf1 {[%clk 0:00:06.6]} 35... Rxf1+ {[%clk
0:00:58.9]} 36. Kh2 {[%clk 0:00:07.3]} 36... Rf6 {[%clk 0:00:56]} 37. Qe5 {[%clk
0:00:07.2]} 37... Bd7 {[%clk 0:00:53.8]} 38. Qxe4 {[%clk 0:00:06.7]} 38... g6
{[%clk 0:00:52.6]} 39. Qa8+ {[%clk 0:00:06.8]} 39... Rf8 {[%clk 0:00:51.4]} 40.
Qxa5 {[%clk 0:00:07.7]} 40... Rb8 {[%clk 0:00:49.9]} 41. Qe5 {[%clk 0:00:07.4]}
41... Re8 {[%clk 0:00:48.9]} 42. Qd6 {[%clk 0:00:06.9]} 42... Bc8 {[%clk
0:00:47.3]} 43. Qxb4 {[%clk 0:00:06.7]} 43... Kf7 {[%clk 0:00:45.7]} 44. Qf4+
{[%clk 0:00:06]} 44... Kg8 {[%clk 0:00:44.3]} 45. Qe5 {[%clk 0:00:05.8]} 45...
Kf7 {[%clk 0:00:43.4]} 46. a5 {[%clk 0:00:06.2]} 46... Re7 {[%clk 0:00:42.5]}
47. Bc4 {[%clk 0:00:05.7]} 47... Ra7 {[%clk 0:00:40.5]} 48. b4 {[%clk
0:00:05.7]} 48... Rd7 {[%clk 0:00:37.7]} 49. Bd3 {[%clk 0:00:05.8]} 49... Rd5
{[%clk 0:00:36.4]} 50. Qc7+ {[%clk 0:00:05.4]} 50... Bd7 {[%clk 0:00:34.5]} 51.
a6 {[%clk 0:00:05.4]} 51... Rd4 {[%clk 0:00:30.3]} 52. a7 {[%clk 0:00:04.8]}
52... Rxb4 {[%clk 0:00:29.6]} 53. Qxd7+ {[%clk 0:00:04.2]} 53... Kf6 {[%clk
0:00:29.3]} 54. a8=Q {[%clk 0:00:05.1]} 54... Rf4 {[%clk 0:00:28.6]} 55. Qf8+
{[%clk 0:00:05.3]} 55... Kg5 {[%clk 0:00:29.5]} 56. Qde7+ {[%clk 0:00:05.4]}
56... Kh5 {[%clk 0:00:28.2]} 57. Qxf4 {[%clk 0:00:05.7]} 57... g5 {[%clk
0:00:28]} 58. Qexg5# {[%clk 0:00:05.8]} 1-0